bitfinex/quotes_ETHUSD_20250213
["timestamp","ask_amount","ask_price","bid_price","bid_amount"]
[1739438182497,5.593,2676.5,2676.2,3.73664]
[1739438183634,0.015,2676.4,2676.1,0.8108]
[1739438183941,0.015,2676.4,2676.1,4.54749]
[1739438184441,0.015,2676.4,2676.1,3.73669]
[1739438185337,5.305,2676.4,2676.0,6.7369]
[1739438186277,5.305,2676.4,2676.1,3.73677]
[1739438186939,5.305,2676.4,2676.0,3.0]
[1739438187116,5.305,2676.4,2676.1,3.73676]
[1739438187874,5.29,2676.4,2676.0,3.0]
[1739438188022,5.29,2676.4,2676.0,3.81212312]
[1739438188223,5.29,2676.4,2676.1,3.73678]
[1739438188449,5.29,2676.4,2676.1,3.73669]
[1739438188656,5.29,2676.4,2676.2,3.73663]
[1739438188872,5.29,2676.4,2676.1,3.73669]
[1739438189056,0.0075,2676.3,2676.0,3.0]
[1739438189580,0.0075,2676.3,2676.0,6.7369]
[1739438190766,0.0075,2676.3,2676.2,3.73664]
[1739438191131,5.29,2676.3,2676.2,3.73664]
[1739438192702,5.29,2676.3,2676.2,12.11567937]
[1739438193605,3.42175,2676.3,2676.2,12.11567937]
[1739438193905,0.141,2677.0,2676.2,12.11567937]
[1739438193906,1.5535,2677.4,2677.3,3.7351]
[1739438194108,0.288,2677.7,2677.5,3.73469]
[1739438194311,0.288,2677.7,2677.3,3.73497]
[1739438195305,0.015,2677.6,2677.3,3.73497]
[1739438195503,7.4765,2677.8,2677.3,4.54914704]
[1739438195808,7.4765,2677.8,2677.5,3.73473]
[1739438196023,7.4765,2677.8,2677.3,3.73504]
[1739438196311,7.4765,2677.8,2677.4,3.7349]
[1739438196516,7.4765,2677.8,2677.3,3.73504]
[1739438196713,7.4765,2677.8,2677.5,3.73481]
[1739438196855,1.5535,2677.8,2677.5,3.73473]
[1739438197055,1.561,2677.8,2677.2,4.40680037]
[1739438197313,1.5685,2677.8,2677.7,3.73454]
[1739438198400,1.5685,2677.8,2677.6,3.7346]
[1739438198595,1.5685,2677.8,2677.6,7.4692]
[1739438198796,1.5685,2677.8,2677.6,3.7346]
[1739438199097,1.5535,2677.8,2677.7,3.73454]
[1739438199296,1.5535,2678.5,2678.2,3.73374]
[1739438199482,1.5535,2678.5,2678.3,3.73369]
[1739438199731,1.5535,2678.5,2678.3,3.73359]
[1739438199853,1.5685,2678.5,2678.4,3.73357]
[1739438200280,1.5685,2678.5,2678.1,4.54866]
[1739438200673,1.5685,2678.5,2678.3,3.73363]
[1739438201285,1.5685,2678.5,2678.2,3.73373]
[1739438201459,1.5685,2678.5,2678.3,3.73366]
[1739438202973,1.5685,2678.5,2678.1,4.54861]
[1739438203174,1.5685,2678.5,2678.2,3.73383]
[1739438204505,5.30202,2678.5,2678.1,3.8147]
[1739438204679,1.5685,2678.5,2678.1,7.54868]
[1739438204880,1.5685,2678.5,2678.1,3.8147]
[1739438205203,1.5685,2678.5,2678.2,3.73384]
[1739438205405,1.5535,2679.2,2678.3,3.7842]
[1739438205613,1.5535,2679.2,2679.1,3.73259]
[1739438205816,3.73232,2679.3,2678.8,4.51721]
[1739438206129,0.015,2679.2,2678.7,3.57760037]
[1739438206273,3.74758,2679.2,2678.7,3.57760037]
[1739438206919,3.74784,2679.0,2678.6,3.7842]
[1739438207252,3.74784,2679.0,2678.6,3.0]
[1739438207413,3.73289,2678.9,2678.5,3.0]
[1739438207630,0.015,2678.7,2678.5,3.0]
[1739438208031,0.015,2678.7,2678.6,3.73329]
[1739438208337,0.015,2679.0,2678.5,6.73332]
[1739438208468,0.015,2678.8,2678.5,3.0]
[1739438208784,0.015,2679.0,2678.5,6.73341]
[1739438208987,0.015,2678.8,2678.5,6.73341]
[1739438209749,0.015,2678.8,2678.5,3.0]
[1739438210071,0.015,2678.6,2678.5,3.0]
[1739438210297,0.015,2678.6,2678.2,4.862037]
[1739438210298,0.015,2678.6,2678.2,3.73378]
[1739438210509,0.015,2678.6,2678.1,3.57760037]
[1739438210705,3.74837,2678.6,2678.1,3.57760037]
[1739438210908,3.74837,2678.6,2678.2,3.0]
[1739438211214,0.015,2678.6,2678.2,6.73383]
[1739438211415,0.015,2678.6,2678.3,3.73371]
[1739438212014,0.015,2678.6,2678.4,3.73348]
[1739438212191,0.015,2678.6,2678.3,3.73371]
[1739438212388,0.015,2678.6,2678.2,3.0]
[1739438212594,3.73346,2678.5,2678.2,3.0]
[1739438213305,3.74831,2678.6,2678.2,3.0]
[1739438213704,3.74864,2678.4,2677.9,4.49086]
[1739438214016,0.126,2678.3,2678.0,6.7341]
[1739438214518,0.126,2678.3,2678.0,6.73402]
[1739438214857,1.5685,2678.4,2678.2,3.73375]
[1739438215357,1.5685,2678.4,2678.2,7.46749]
[1739438215573,1.5535,2678.4,2678.3,3.73371]
[1739438215748,1.5535,2678.4,2678.2,3.73374]
[1739438216064,1.5535,2678.4,2678.3,3.73371]
[1739438216629,1.5535,2678.4,2678.2,4.84556404]
[1739438216930,1.5535,2678.4,2678.2,3.73384]
[1739438217130,1.5535,2678.4,2678.1,8.11842037]
[1739438217363,1.5535,2678.4,2678.1,4.38450037]
[1739438217546,1.5535,2678.4,2678.3,3.73371]
[1739438217754,1.5535,2678.4,2678.2,3.73371]
[1739438218248,1.5535,2678.4,2678.2,7.46748]
[1739438218673,1.5535,2678.4,2678.3,3.73371]
[1739438218839,1.5535,2678.4,2678.1,4.38450037]
[1739438219047,1.5535,2678.4,2678.3,3.73371]
[1739438219268,1.5535,2678.4,2678.3,6.73371]
[1739438220693,1.5535,2678.4,2678.3,7.52961]
[1739438221829,1.5535,2678.4,2678.3,3.0]
[1739438222331,1.5535,2678.4,2678.1,3.57760037]
[1739438222642,0.126,2678.2,2677.7,0.7794]
[1739438222828,0.015,2678.1,2677.5,4.35700037]
[1739438223029,3.73422,2678.0,2677.5,4.5142]
[1739438223252,0.288,2677.9,2677.6,3.0]
[1739438223676,0.288,2677.9,2677.6,6.73458]
[1739438223831,0.288,2677.9,2677.6,6.73457]
[1739438224032,0.288,2677.9,2677.6,4.10915804]
[1739438224373,0.288,2677.9,2677.6,3.0]
[1739438225062,0.288,2677.9,2677.8,3.7344]
[1739438225261,0.288,2677.9,2677.6,6.73467]
[1739438226260,0.288,2677.9,2677.7,3.73452]
[1739438226451,0.288,2677.9,2677.6,6.73461]
[1739438226778,0.288,2677.9,2677.6,3.0]
[1739438226976,0.288,2677.9,2677.6,6.73467]
[1739438227276,0.288,2677.9,2677.6,6.73461]
[1739438227834,0.288,2677.9,2677.6,6.73457]
[1739438228678,1.5535,2678.0,2677.9,3.73426]
[1739438229410,1.5535,2678.0,2677.9,6.73426]
[1739438230556,1.5535,2678.0,2677.9,7.54956]
[1739438232732,0.288,2678.4,2678.3,3.73371]
[1739438232904,1.5535,2678.5,2678.3,3.73371]
[1739438233512,1.5535,2678.5,2678.3,3.73369]
[1739438234522,1.5685,2678.5,2678.4,3.73357]
[1739438234722,1.6795,2678.8,2678.4,3.73357]
[1739438234919,1.8415,2678.8,2678.5,3.73343]
[1739438235126,1.8415,2678.8,2678.6,3.73321]
[1739438235630,1.8415,2678.8,2678.5,4.56472]
[1739438236038,1.8415,2678.8,2678.6,3.73327]
[1739438236732,1.8415,2678.8,2678.5,0.8313]
[1739438237048,1.8415,2678.8,2678.7,3.73315]
[1739438237811,1.8415,2678.8,2678.5,3.7333]
[1739438238125,1.8415,2678.8,2678.4,3.95095737]
[1739438238323,5.57458,2678.8,2678.3,4.50051]
[1739438238537,3.73326,2678.7,2678.2,3.0]
[1739438238735,3.73326,2678.7,2678.2,6.73373]
[1739438239046,0.015,2678.7,2678.3,3.73358]
[1739438239216,0.015,2678.7,2678.4,3.0]
[1739438239419,0.015,2678.7,2678.5,3.73343]
[1739438239644,0.015,2678.7,2678.6,3.73329]
[1739438240852,1.5535,2678.8,2678.5,3.73329]
[1739438241174,1.8415,2678.8,2678.4,10.31108037]
[1739438241384,1.8415,2678.8,2678.5,3.73337]
[1739438242124,1.8415,2678.8,2678.4,6.57760037]
[1739438242360,3.85937,2678.6,2678.1,8.12759037]
[1739438242581,3.74846,2678.5,2678.1,3.57760037]
[1739438242782,3.7336,2678.4,2678.1,3.57760037]
[1739438243279,0.015,2678.5,2678.2,3.73379]
[1739438243690,0.015,2678.5,2678.3,3.73367]
[1739438243818,0.015,2678.5,2678.3,3.73371]
[1739438244024,3.73315,2678.7,2678.1,3.57760037]
[1739438244262,3.73315,2678.7,2678.2,3.73375]
[1739438244424,3.74067,2678.7,2678.2,3.73385]
[1739438245019,0.0075,2678.7,2678.3,3.7337]
[1739438245565,0.0075,2678.7,2678.6,3.73329]
[1739438246822,1.8415,2678.8,2678.7,3.73315]
[1739438247557,1.8415,2678.8,2678.6,0.821684]
[1739438247966,1.8415,2678.8,2678.6,4.554954]
[1739438248483,1.8415,2678.8,2678.6,0.821684]
[1739438248687,1.8415,2678.8,2678.4,8.06134037]
[1739438248916,3.74816,2678.7,2678.4,3.0]
[1739438249317,3.74816,2678.7,2678.1,8.06922037]
[1739438249610,0.015,2678.5,2678.1,7.31150037]
[1739438249816,0.015,2678.5,2678.3,3.73364]
[1739438249986,0.015,2678.5,2678.2,3.73378]
[1739438250171,0.015,2678.5,2678.4,3.73357]
[1739438250357,5.70051,2678.8,2678.4,3.73357]
[1739438250694,0.015,2678.7,2678.5,3.73334]
[1739438250897,0.015,2678.7,2678.4,4.49917]
[1739438251198,1.9675,2678.8,2678.6,3.73326]
[1739438252024,1.8415,2678.8,2678.5,3.73343]
[1739438252314,1.5535,2678.8,2678.7,3.73315]
[1739438253373,1.5535,2678.8,2678.6,3.73318]
[1739438253724,1.5535,2678.8,2678.7,7.31075037]
[1739438253858,1.5535,2678.8,2678.4,4.79311737]
[1739438254165,1.5535,2678.8,2677.9,0.72977699]
[1739438254166,3.87415,2678.7,2678.2,0.8187]
[1739438254360,0.015,2678.7,2678.2,0.8187]
[1739438254605,0.015,2678.7,2678.3,7.46742]
[1739438254905,0.015,2678.7,2678.5,3.73337]
[1739438255198,1.5685,2678.7,2678.5,3.73333]
[1739438255569,1.5685,2678.7,2678.6,3.73329]
[1739438255982,1.75556534,2678.7,2678.4,7.46698]
[1739438256187,3.73343,2678.5,2678.1,7.31149037]
[1739438256378,3.73343,2678.5,2678.1,3.0]
[1739438256565,3.85931,2678.6,2678.1,6.73396]
[1739438256765,3.85931,2678.6,2678.2,3.73381]
[1739438256972,0.126,2678.6,2678.1,3.57760037]
[1739438257174,1.5535,2678.7,2678.6,3.73329]
[1739438257397,1.5535,2678.7,2678.5,3.73331]
[1739438257762,0.141,2678.6,2678.2,3.73378]
[1739438259002,0.141,2678.6,2678.2,3.73376]
[1739438259307,1.5535,2678.7,2678.4,8.12243037]
[1739438259467,1.5535,2678.7,2678.4,8.12337341]
[1739438259800,1.5535,2678.7,2678.2,4.52339]
[1739438259962,1.5535,2678.7,2678.4,3.73351]
[1739438260396,0.015,2678.6,2678.3,7.46722]
[1739438260600,0.015,2678.6,2678.4,3.7335]
[1739438261103,0.015,2678.6,2678.5,3.73343]
[1739438261600,1.5535,2678.7,2678.5,3.73343]
[1739438261804,1.5535,2678.7,2678.6,3.73329]
[1739438262463,1.5535,2678.7,2678.5,3.73343]
[1739438262663,0.141,2678.6,2678.3,3.73363]
[1739438262858,0.126,2678.6,2678.5,3.73343]
[1739438263064,1.5535,2678.7,2678.5,3.73343]
[1739438263377,1.5535,2678.7,2678.6,3.73329]
[1739438264881,1.8415,2679.3,2678.6,4.91409204]
[1739438265090,1.8415,2679.3,2679.0,3.7326]
[1739438265407,0.015,2679.2,2679.0,3.7326]
[1739438265568,0.015,2679.2,2679.1,3.73259]
[1739438265764,0.015,2679.2,2679.0,3.7326]
[1739438266164,0.015,2679.2,2679.1,3.73259]
[1739438266407,0.015,2679.2,2679.0,3.7326]
[1739438267106,0.015,2679.2,2678.8,3.73293]
[1739438267401,0.015,2679.0,2678.6,3.73324]
[1739438267603,0.015,2679.0,2678.6,3.73321]
[1739438267604,3.74774,2679.0,2678.6,3.73321]
[1739438267807,0.015,2679.0,2678.6,3.73321]
[1739438268376,0.015,2678.8,2678.4,6.57760037]
[1739438268606,0.015,2678.8,2678.6,3.73318]
[1739438268766,0.015,2678.8,2678.7,3.73315]
[1739438269175,1.5535,2678.9,2678.8,3.73301]
[1739438269684,1.5535,2678.9,2678.8,4.49271]
[1739438270567,1.5535,2678.9,2678.7,3.73315]
[1739438270779,1.5535,2678.9,2678.8,3.73301]
[1739438272013,1.5535,2678.9,2678.7,3.73315]
[1739438272323,1.5685,2678.9,2678.8,3.73301]
[1739438272630,1.5685,2678.9,2678.7,3.73309]
[1739438272923,1.6945,2678.9,2678.4,7.31114037]
[1739438273225,0.015,2678.8,2678.5,3.73329]
[1739438273528,0.015,2678.8,2678.5,6.73329]
[1739438275906,0.015,2678.8,2678.5,3.0]
[1739438279245,3.74804,2678.8,2678.5,3.0]
[1739438279843,0.015,2678.8,2678.5,3.0]
[1739438280018,0.015,2678.8,2678.5,6.73341]
[1739438280206,1.5685,2678.8,2678.5,6.73341]
[1739438280407,5.30154,2678.8,2678.5,3.0]
[1739438281304,0.0075,2678.7,2678.5,3.0]
[1739438281505,5.29421,2678.7,2678.2,3.73375]
[1739438281807,0.1335,2678.5,2677.9,3.73426]
[1739438282035,1.6795,2678.5,2677.9,3.73426]
[1739438282221,1.6795,2678.5,2678.1,3.0]
[1739438282423,1.6795,2678.5,2677.9,3.73426]
[1739438282424,3.73358,2678.4,2678.0,3.0]
[1739438282622,3.73358,2678.4,2678.0,6.73411]
[1739438282817,3.73371,2678.3,2678.0,3.0]
[1739438283034,3.73358,2678.4,2678.0,3.0]
[1739438283644,0.015,2678.4,2678.1,3.73393]
[1739438284508,0.015,2678.4,2678.2,3.73376]
[1739438284715,0.015,2678.4,2678.1,3.73397]
[1739438285737,0.015,2678.4,2678.2,3.73378]
[1739438286231,1.5685,2678.4,2678.2,3.73378]
[1739438286457,1.5685,2678.4,2678.0,6.73401]
[1739438286772,1.5685,2678.4,2678.0,3.0]
[1739438287068,1.5685,2678.4,2678.1,3.73391]
[1739438287458,1.5685,2678.4,2678.0,3.0]
[1739438287637,5.30213,2678.4,2678.0,3.0]
[1739438288375,1.5685,2678.4,2678.0,6.73407]
[1739438288759,1.5685,2678.4,2678.0,6.73403]
[1739438289556,5.30215,2678.4,2678.0,3.0]
[1739438289752,0.015,2678.1,2677.6,4.50346]
[1739438289983,0.015,2678.1,2677.7,3.73454]
[1739438290645,0.015,2678.1,2678.0,3.73412]
[1739438291069,0.015,2678.1,2677.9,3.73413]
[1739438291269,1.8415,2678.3,2678.1,3.73385]
[1739438292042,1.8415,2678.3,2678.1,7.46777]
[1739438292241,1.8415,2678.3,2678.2,3.73385]
[1739438292644,1.8415,2678.3,2678.0,4.50302]
[1739438292883,1.8415,2678.3,2678.0,4.50294]
[1739438293179,1.8415,2678.3,2678.2,3.73385]
[1739438293413,1.8415,2678.3,2678.1,3.73391]
[1739438293611,1.5535,2678.3,2678.2,4.184131]
[1739438294259,1.5535,2678.6,2678.5,3.73343]
[1739438294459,1.5535,2678.6,2678.5,4.50233]
[1739438297764,1.5535,2678.6,2678.4,7.31108037]
[1739438298112,1.5535,2678.6,2678.5,3.73343]
[1739438299485,1.5535,2678.6,2678.4,8.08721651]
[1739438299685,1.5535,2678.6,2678.1,0.7320145]
[1739438299686,1.5535,2678.6,2678.1,0.7909]
[1739438299972,1.5535,2678.6,2678.4,3.7335]
[1739438301419,1.5535,2678.6,2678.4,3.73346]
[1739438301621,1.5535,2678.6,2678.5,3.73343]
[1739438302207,1.5535,2678.6,2678.5,4.56233]
[1739438302411,1.5535,2678.6,2678.5,5.74966904]
[1739438303999,1.5535,2679.1,2678.5,2.01623904]
[1739438304333,0.288,2679.3,2678.9,3.7328]
[1739438304539,1.8415,2679.3,2678.8,7.46602]
[1739438304679,1.5535,2679.3,2678.8,3.73301]
[1739438304885,1.5535,2679.3,2678.9,3.73287]
[1739438305265,1.5535,2679.3,2679.1,3.73259]
[1739438305758,1.5535,2679.3,2679.0,3.73269]
[1739438305961,1.5535,2679.3,2678.9,3.73278]
[1739438306097,1.5535,2679.3,2678.7,3.57760037]
[1739438306302,1.5535,2679.3,2679.0,3.73261]
[1739438307015,1.5535,2679.3,2679.0,3.73265]
[1739438307443,1.5535,2679.3,2678.9,3.73286]
[1739438307825,1.5535,2679.3,2679.0,3.73271]
[1739438308459,1.5535,2679.3,2678.9,3.73286]
[1739438308639,5.28583,2679.3,2678.8,3.73299]
[1739438309246,1.5535,2679.3,2678.7,7.31069037]
[1739438309421,1.5535,2679.3,2679.0,3.73263]
[1739438310245,1.5535,2679.3,2679.1,3.73252]
[1739438310470,1.5535,2679.3,2678.9,3.73274]
[1739438310766,1.5535,2679.3,2679.0,3.73266]
[1739438311969,1.5535,2679.3,2679.2,3.73245]
[1739438312603,1.5535,2679.3,2679.2,4.558652]
[1739438312803,0.414,2679.7,2679.2,0.826202]
[1739438313060,0.015,2679.7,2679.6,3.7319]
[1739438313202,0.015,2679.7,2679.5,3.73202]
[1739438313406,0.015,2679.7,2679.3,0.03731936]
[1739438313407,0.015,2679.7,2679.3,3.73225]
[1739438314211,0.015,2679.7,2679.4,3.73215]
[1739438314850,0.015,2679.7,2679.3,4.6446102]
[1739438315535,0.015,2679.7,2679.4,3.73208]
[1739438315758,0.015,2679.7,2679.3,4.6446102]
[1739438315912,0.126,2679.3,2678.8,0.8043]
[1739438316109,0.126,2679.3,2679.0,6.73261]
[1739438316309,0.126,2679.3,2679.1,3.73253]
[1739438316557,0.126,2679.3,2678.9,3.93050135]
[1739438316708,0.126,2679.3,2678.9,7.66324135]
[1739438316909,3.85833,2679.3,2678.9,4.66333135]
[1739438317553,0.126,2679.3,2679.0,3.73267]
[1739438317828,3.85832,2679.3,2679.0,1.22003014]
[1739438318027,0.126,2679.3,2678.9,3.73283]
[1739438318315,0.126,2679.3,2678.9,3.73278]
[1739438318632,3.85833,2679.3,2678.9,3.73278]
[1739438318838,3.85833,2679.3,2678.8,6.73295]
[1739438319043,3.85833,2679.3,2678.9,3.73286]
[1739438319246,0.126,2679.3,2678.9,3.73286]
[1739438319453,0.126,2679.3,2679.0,3.73263]
[1739438320052,0.126,2679.3,2679.0,3.73266]
[1739438320509,0.126,2679.3,2678.9,1.52336135]
[1739438320710,0.126,2679.3,2679.1,3.73255]
[1739438321647,0.413,2679.5,2679.2,3.73244]
[1739438321849,1.9665,2679.5,2679.2,3.73244]
[1739438322167,1.5535,2679.5,2679.2,4.91901904]
[1739438322313,1.5535,2679.5,2679.3,3.73225]
[1739438322707,1.5535,2679.5,2679.2,1.18657904]
[1739438323171,1.5535,2679.5,2679.4,3.73217]
[1739438325575,1.5535,2679.5,2679.3,3.73223]
[1739438326177,1.5535,2679.5,2679.2,4.91901904]
[1739438326320,1.5535,2679.5,2679.3,3.73231]
[1739438326839,1.5535,2679.5,2679.4,3.73217]
[1739438329744,1.5535,2679.5,2679.3,3.73231]
[1739438330058,1.5535,2679.5,2679.3,3.73223]
[1739438330301,1.5535,2679.5,2679.4,3.73217]
[1739438331935,1.5535,2679.5,2679.2,1.18657904]
[1739438332276,1.5535,2679.5,2679.3,3.7323]
[1739438332457,1.5535,2679.5,2679.4,3.73217]
[1739438336585,1.5535,2679.5,2679.3,3.7323]
[1739438336797,1.5535,2679.5,2679.2,3.73238]
[1739438337098,1.5535,2679.5,2679.3,3.73225]
[1739438338404,1.5535,2679.5,2679.4,3.73217]
[1739438338546,1.5535,2679.5,2679.4,4.49237]
[1739438339809,1.5535,2679.5,2679.4,3.73217]
[1739438339956,1.5535,2679.5,2679.4,4.08044776]
[1739438340154,1.5535,2679.5,2679.4,3.73217]
[1739438341718,1.5535,2679.5,2679.4,4.08051543]
[1739438341852,1.5535,2679.5,2679.4,3.73217]
[1739438342052,1.5535,2679.5,2679.4,4.08048328]
[1739438342387,1.5535,2679.5,2679.4,3.73217]
[1739438344352,1.5535,2679.5,2679.4,4.559786]
[1739438344676,1.5535,2680.0,2679.8,3.73155]
[1739438345079,1.5535,2680.0,2679.9,3.73148]
[1739438345253,1.5535,2680.0,2679.7,3.73175]
[1739438345459,1.5535,2680.0,2679.6,3.73182]
[1739438345692,1.5535,2680.0,2679.5,3.0]
[1739438345889,1.5535,2680.0,2679.6,3.73183]
[1739438346797,5.28486,2680.0,2679.6,3.73183]
[1739438347110,0.126,2680.3,2679.8,0.753]
[1739438347254,0.287,2680.2,2679.9,3.73141]
[1739438347673,0.126,2680.3,2679.8,0.753]
[1739438347860,0.413,2680.3,2679.8,0.753]
[1739438348184,0.413,2680.3,2679.8,1.55922304]
[1739438348387,0.413,2680.3,2679.9,3.73142]
[1739438348586,4.14401,2680.3,2679.8,5.29075304]
[1739438348789,0.015,2680.2,2679.6,4.34300037]
[1739438349095,0.015,2680.2,2679.8,3.7315]
[1739438349796,4.14394,2680.3,2679.6,8.07486037]
[1739438349973,4.14394,2680.3,2679.9,3.73146]
[1739438350303,4.14402,2680.3,2679.8,3.73161]
[1739438350619,3.7461,2680.2,2679.6,4.4972]
[1739438350822,3.7461,2680.2,2679.7,3.73167]
[1739438351128,3.85751,2679.9,2679.5,3.0]
[1739438351281,3.85751,2679.9,2679.4,6.7321]
[1739438351481,3.85751,2679.9,2679.5,3.0]
[1739438351708,1.6795,2679.9,2679.5,6.73202]
[1739438351915,1.6795,2679.9,2679.6,3.73177]
[1739438352079,0.015,2679.8,2679.5,3.0]
[1739438352624,3.74669,2679.8,2679.3,4.48569]
[1739438352832,0.015,2679.6,2679.1,4.54911]
[1739438353122,1.5685,2679.6,2679.3,6.73231]
[1739438353713,1.5685,2679.6,2679.4,3.73216]
[1739438354116,1.5535,2679.6,2679.5,3.73203]
[1739438354486,1.5535,2679.6,2679.5,4.52553]
[1739438354685,1.5535,2679.6,2679.5,5.70905904]
[1739438357315,1.5535,2679.6,2679.5,1.97702904]
[1739438357539,3.73151,2679.9,2679.5,0.7935]
[1739438358059,1.5535,2680.0,2679.5,4.52551]
[1739438358269,5.28487,2680.0,2679.5,4.52551]
[1739438358465,1.5535,2680.0,2679.5,4.52551]
[1739438358961,3.73155,2679.9,2679.5,0.7935]
[1739438359132,1.6795,2680.0,2679.7,3.73168]
[1739438359328,1.6795,2680.0,2679.8,3.73162]
[1739438359560,1.5535,2680.0,2679.6,4.51409]
[1739438360066,1.5535,2680.0,2679.7,3.73175]
[1739438360434,1.5535,2680.0,2679.6,4.51409]
[1739438360643,1.5535,2680.0,2679.8,3.73159]
[1739438361464,1.5535,2680.0,2679.6,1.233609]
[1739438361654,1.5535,2680.0,2679.6,4.965399]
[1739438361884,1.5535,2680.0,2679.9,3.73148]
[1739438362052,1.5535,2680.0,2679.6,4.81120937]
[1739438362053,1.5535,2680.0,2679.8,3.7316]
[1739438362369,1.5535,2680.0,2679.9,3.73148]
[1739438362669,1.5535,2680.0,2679.8,8.69060394]
[1739438362966,1.5535,2680.0,2679.9,3.73148]
[1739438363270,0.413,2680.5,2680.1,4.52709]
[1739438363568,1.5535,2680.6,2680.2,3.57760037]
[1739438363873,0.55,2681.1,2681.0,3.72995]
[1739438364565,0.55,2681.1,2680.9,7.30768037]
[1739438364566,0.55,2681.1,2680.9,7.30759037]
[1739438364974,0.55,2681.1,2680.9,11.03758037]
[1739438365129,0.55,2681.1,2681.0,3.72995]
[1739438366983,0.55,2681.1,2680.9,4.18534804]
[1739438367188,0.55,2681.1,2680.6,3.73044]
[1739438367459,0.55,2681.1,2680.6,3.73042]
[1739438367654,0.55,2681.1,2680.7,3.0]
[1739438368088,0.55,2681.1,2680.8,3.73022]
[1739438369298,0.55,2681.1,2680.7,6.73035]
[1739438369503,0.55,2681.1,2680.8,1.046074]
[1739438370099,0.55,2681.1,2680.8,4.776194]
[1739438370686,0.55,2681.1,2680.8,1.046074]
[1739438370893,4.27988,2681.1,2680.6,7.30802037]
[1739438371097,4.27988,2681.1,2680.6,3.73042]
[1739438371405,8.00978,2681.1,2680.6,3.73042]
[1739438371706,0.015,2681.0,2680.3,3.57760037]
[1739438371859,0.126,2680.9,2680.2,4.55898]
[1739438372065,3.73031,2680.8,2680.4,3.0]
[1739438372915,0.015,2680.8,2680.4,3.73078]
[1739438373203,5.28353,2681.0,2680.4,3.73078]
[1739438373412,5.28353,2681.0,2680.3,4.10930833]
[1739438373413,1.5535,2681.0,2680.5,0.8083]
[1739438373559,5.28346,2681.0,2680.5,5.03068083]
[1739438373760,0.015,2680.8,2680.3,4.10930833]
[1739438373988,3.73061,2680.6,2680.2,0.8083]
[1739438374218,3.73061,2680.6,2680.0,8.04371831]
[1739438374219,0.015,2680.5,2680.0,4.38590037]
[1739438374416,0.015,2680.5,2679.8,3.73152]
[1739438374417,3.73101,2680.3,2679.8,3.7316]
[1739438374566,5.41031,2680.4,2679.9,3.0]
[1739438374761,3.73092,2680.3,2679.9,3.0]
[1739438375101,0.015,2680.3,2679.9,3.0]
[1739438375287,0.015,2680.3,2679.9,4.18578537]
[1739438375487,0.015,2680.3,2679.9,7.91724537]
[1739438375696,0.015,2680.3,2679.9,3.73146]
[1739438376513,3.74596,2680.3,2679.8,6.73158]
[1739438376931,3.73106,2680.2,2679.8,3.0]
[1739438377120,3.7313,2680.1,2679.7,0.8083]
[1739438377987,3.74599,2680.3,2679.7,4.53995]
[1739438378175,3.74599,2680.3,2679.8,0.87490105]
[1739438378376,0.015,2680.3,2679.9,3.73147]
[1739438378616,0.015,2680.3,2679.8,7.60639105]
[1739438378794,0.015,2680.3,2679.9,3.73143]
[1739438379412,1.6795,2680.4,2679.9,3.76870217]
[1739438379578,5.4103,2680.4,2679.9,8.36575036]
[1739438379778,5.4103,2680.4,2679.9,4.63434036]
[1739438380002,1.5535,2680.4,2680.1,3.7312]
[1739438380208,1.5535,2680.4,2680.3,3.73092]
[1739438380395,1.5535,2680.4,2680.2,3.73104]
[1739438380592,1.5535,2680.4,2680.3,0.455754]
[1739438381366,5.57087,2680.7,2680.3,0.455754]
[1739438381662,3.74586,2680.4,2679.9,3.0]
[1739438381961,3.731,2680.3,2679.9,3.0]
[1739438383936,3.731,2680.3,2679.9,6.73144]
[1739438384241,3.87178,2680.4,2679.9,6.73144]
[1739438384879,3.87185,2680.4,2679.9,6.73144]
[1739438385064,3.87185,2680.4,2680.0,3.73132]
[1739438385741,3.73092,2680.3,2679.9,3.0]
[1739438386246,0.413,2680.4,2679.9,6.73145]
[1739438386448,3.74598,2680.3,2679.9,3.0]
[1739438386646,0.413,2680.4,2679.9,3.0]
[1739438386942,4.14381,2680.4,2679.9,6.73138]
[1739438387174,0.413,2680.4,2679.9,6.73138]
[1739438387372,1.9665,2680.4,2680.0,3.73125]
[1739438388209,1.9665,2680.4,2679.9,6.73144]
[1739438388355,5.69736,2680.4,2679.9,6.73144]
[1739438389185,5.6973,2680.4,2679.9,6.73144]
[1739438389343,5.6973,2680.4,2680.0,3.73133]
[1739438389548,1.9665,2680.4,2680.0,3.73133]
[1739438389757,1.9665,2680.4,2680.0,5.29946914]
[1739438389758,5.69728,2680.4,2680.0,5.29946914]
[1739438390053,5.69728,2680.4,2680.0,1.56813914]
[1739438390706,5.69728,2680.4,2680.0,5.29946914]
[1739438390854,1.9665,2680.4,2680.0,5.29946914]
[1739438392205,1.9665,2680.4,2680.0,5.29939914]
[1739438392385,1.8405,2680.4,2680.1,4.91882995]
[1739438392586,1.8405,2680.4,2680.2,0.7519]
[1739438393273,5.57132,2680.4,2680.1,1.18769995]
[1739438393583,1.5535,2680.4,2680.2,3.73099]